[Event "Titled Tuesday Blitz August 15 Late 2023"]
[White "Nefedov, Sergey"]
[Black "Bullen, Alex"]
[WhiteFideId "24113417"]
[BlackFideId "1801627"]
[WhiteElo "2645"]
[BlackElo "2309"]
[Result "1/2-1/2"]
[Round "2"]
[TimeControl "180+1"]
[Date "2023.08.15"]
[WhiteClock "0:00:30"]
[BlackClock "0:00:07"]
[Board "79"]

1. d4 {[%clk 0:03:00]}  d5 {[%clk 0:02:58]} 2. Nf3 {[%clk 0:03:00]}  Nf6 {[%clk 0:02:58]} 3. Bf4 {[%clk 0:03:01]}  c5 {[%clk 0:02:59]} 4. e3 {[%clk 0:03:01]}  Nc6 {[%clk 0:02:59]} 5. c3 {[%clk 0:03:01]}  Qb6 {[%clk 0:02:59]} 6. Qb3 {[%clk 0:03:01]}  c4 {[%clk 0:02:59]} 7. Qc2 {[%clk 0:03:02]}  Bf5 {[%clk 0:02:59]} 8. Qc1 {[%clk 0:03:02]}  e6 {[%clk 0:02:59]} 9. Nbd2 {[%clk 0:03:03]}  Be7 {[%clk 0:02:59]} 10. h3 {[%clk 0:03:03]}  h6 {[%clk 0:02:59]} 11. Be2 {[%clk 0:03:01]}  O-O {[%clk 0:02:59]} 12. O-O {[%clk 0:03:02]}  Qd8 {[%clk 0:02:59]} 13. Bd1 {[%clk 0:03:01]}  b5 {[%clk 0:02:59]} 14. Bc2 {[%clk 0:03:02]}  Bxc2 {[%clk 0:02:53]} 15. Qxc2 {[%clk 0:03:03]}  a5 {[%clk 0:02:53]} 16. Ne5 {[%clk 0:03:02]}  Nxe5 {[%clk 0:02:52]} 17. dxe5 {[%clk 0:03:02]}  Nd7 {[%clk 0:02:49]} 18. e4 {[%clk 0:03:02]}  Nc5 {[%clk 0:02:47]} 19. exd5 {[%clk 0:03:02]}  Qxd5 {[%clk 0:02:46]} 20. Rad1 {[%clk 0:02:55]}  Qd3 {[%clk 0:02:43]} 21. Qc1 {[%clk 0:02:46]}  Qf5 {[%clk 0:02:40]} 22. Bg3 {[%clk 0:02:42]}  Rfd8 {[%clk 0:02:27]} 23. Nf3 {[%clk 0:02:33]}  Bg5 {[%clk 0:02:03]} 24. Nxg5 {[%clk 0:02:19]}  hxg5 {[%clk 0:02:04]} 25. Qe3 {[%clk 0:02:19]}  Nd3 {[%clk 0:01:51]} 26. b3 {[%clk 0:02:18]}  Rd5 {[%clk 0:01:45]} 27. Qb6 {[%clk 0:01:57]}  cxb3 {[%clk 0:01:28]} 28. axb3 {[%clk 0:01:56]}  a4 {[%clk 0:01:27]} 29. c4 {[%clk 0:01:54]}  bxc4 {[%clk 0:01:16]} 30. bxc4 {[%clk 0:01:54]}  Rda5 {[%clk 0:01:12]} 31. Ra1 {[%clk 0:01:48]}  Nxe5 {[%clk 0:01:08]} 32. Rfc1 {[%clk 0:01:37]}  Nd3 {[%clk 0:01:06]} 33. Rc3 {[%clk 0:01:36]}  Nf4 {[%clk 0:01:05]} 34. Kh2 {[%clk 0:01:26]}  Qe4 {[%clk 0:01:02]} 35. f3 {[%clk 0:01:20]}  Qe2 {[%clk 0:01:00]} 36. Bxf4 {[%clk 0:01:19]}  gxf4 {[%clk 0:01:00]} 37. c5 {[%clk 0:01:18]}  a3 {[%clk 0:00:48]} 38. Qb4 {[%clk 0:01:06]}  Qb2 {[%clk 0:00:46]} 39. Qxb2 {[%clk 0:00:55]}  axb2 {[%clk 0:00:45]} 40. Rb1 {[%clk 0:00:56]}  Rc8 {[%clk 0:00:39]} 41. Rxb2 {[%clk 0:00:51]}  Raxc5 {[%clk 0:00:39]} 42. Rxc5 {[%clk 0:00:50]}  Rxc5 {[%clk 0:00:40]} 43. h4 {[%clk 0:00:51]}  Kh7 {[%clk 0:00:39]} 44. Kh3 {[%clk 0:00:51]}  Kg6 {[%clk 0:00:39]} 45. Kg4 {[%clk 0:00:51]}  e5 {[%clk 0:00:37]} 46. Rb6+ {[%clk 0:00:51]}  f6 {[%clk 0:00:36]} 47. h5+ {[%clk 0:00:40]}  Kh6 {[%clk 0:00:36]} 48. Rb8 {[%clk 0:00:40]}  Kh7 {[%clk 0:00:33]} 49. Kf5 {[%clk 0:00:38]}  Rc2 {[%clk 0:00:30]} 50. h6 {[%clk 0:00:38]}  gxh6 {[%clk 0:00:14]} 51. Rb7+ {[%clk 0:00:36]}  Kg8 {[%clk 0:00:13]} 52. Kxf6 {[%clk 0:00:36]}  Rxg2 {[%clk 0:00:12]} 53. Kxe5 {[%clk 0:00:35]}  Rg7 {[%clk 0:00:07]} 54. Rb8+ {[%clk 0:00:33]}  Kh7 {[%clk 0:00:07]} 55. Kxf4 {[%clk 0:00:34]}  Rf7+ {[%clk 0:00:05]} 56. Kg4 {[%clk 0:00:34]}  Kg6 {[%clk 0:00:05]} 57. f4 {[%clk 0:00:33]}  h5+ {[%clk 0:00:05]} 58. Kg3 {[%clk 0:00:34]}  h4+ {[%clk 0:00:04]} 59. Kg4 {[%clk 0:00:34]}  h3 {[%clk 0:00:04]} 60. Rh8 {[%clk 0:00:34]}  Rh7 {[%clk 0:00:02]} 61. Rxh7 {[%clk 0:00:23]}  Kxh7 {[%clk 0:00:03]} 62. Kxh3 {[%clk 0:00:22]}  Kg6 {[%clk 0:00:03]} 63. Kg4 {[%clk 0:00:23]}  Kf6 {[%clk 0:00:04]} 64. f5 {[%clk 0:00:24]}  Kf7 {[%clk 0:00:04]} 65. Kg5 {[%clk 0:00:24]}  Kg7 {[%clk 0:00:04]} 66. f6+ {[%clk 0:00:25]}  Kf7 {[%clk 0:00:05]} 67. Kf5 {[%clk 0:00:25]}  Kf8 {[%clk 0:00:05]} 68. Ke5 {[%clk 0:00:26]}  Kf7 {[%clk 0:00:05]} 69. Kf5 {[%clk 0:00:27]}  Kf8 {[%clk 0:00:06]} 70. Ke6 {[%clk 0:00:27]}  Ke8 {[%clk 0:00:06]} 71. Kd6 {[%clk 0:00:27]}  Kf7 {[%clk 0:00:06]} 72. Ke5 {[%clk 0:00:28]}  Kf8 {[%clk 0:00:07]} 73. Ke6 {[%clk 0:00:29]}  Ke8 {[%clk 0:00:07]} 74. f7+ {[%clk 0:00:30]}  Kf8 {[%clk 0:00:07]} 75. Kf6 {[%clk 0:00:30]} 1/2-1/2


[Site "https://www.chess.com"]

[Event "Titled Tuesday Blitz August 15 Late 2023"]
[White "SmirnovAlexandrA"]
[Black "Kula, Robert"]
[BlackFideId "1101218"]
[WhiteElo "2637"]
[BlackElo "2270"]
[Result "1-0"]
[Round "2"]
[TimeControl "180+1"]
[Date "2023.08.15"]
[WhiteClock "0:00:19"]
[BlackClock "0:00:00"]
[Board "80"]

1. e4 {[%clk 0:02:59]}  e5 {[%clk 0:02:59]} 2. d4 {[%clk 0:02:59]}  exd4 {[%clk 0:02:59]} 3. Qxd4 {[%clk 0:03:00]}  Nc6 {[%clk 0:02:58]} 4. Qe3 {[%clk 0:02:59]}  d6 {[%clk 0:02:55]} 5. Nc3 {[%clk 0:02:59]}  Nf6 {[%clk 0:02:54]} 6. Bd2 {[%clk 0:02:59]}  Be7 {[%clk 0:02:53]} 7. O-O-O {[%clk 0:02:59]}  O-O {[%clk 0:02:52]} 8. h4 {[%clk 0:02:55]}  h6 {[%clk 0:02:36]} 9. Qg3 {[%clk 0:02:54]}  Kh8 {[%clk 0:02:31]} 10. f3 {[%clk 0:02:54]}  a6 {[%clk 0:02:30]} 11. Nge2 {[%clk 0:02:50]}  b5 {[%clk 0:02:29]} 12. Nf4 {[%clk 0:02:49]}  b4 {[%clk 0:02:15]} 13. Ncd5 {[%clk 0:02:49]}  Nxd5 {[%clk 0:02:13]} 14. Nxd5 {[%clk 0:02:50]}  a5 {[%clk 0:02:13]} 15. Kb1 {[%clk 0:02:41]}  Be6 {[%clk 0:02:13]} 16. Qf2 {[%clk 0:02:29]}  Bxd5 {[%clk 0:02:04]} 17. exd5 {[%clk 0:02:30]}  Ne5 {[%clk 0:02:03]} 18. g4 {[%clk 0:02:28]}  f5 {[%clk 0:01:49]} 19. g5 {[%clk 0:02:12]}  h5 {[%clk 0:01:49]} 20. f4 {[%clk 0:02:12]}  Ng4 {[%clk 0:01:49]} 21. Qd4 {[%clk 0:02:09]}  Kh7 {[%clk 0:01:46]} 22. b3 {[%clk 0:02:08]}  g6 {[%clk 0:01:44]} 23. Bc1 {[%clk 0:01:58]}  Rf7 {[%clk 0:01:43]} 24. Bb2 {[%clk 0:01:59]}  Qg8 {[%clk 0:01:36]} 25. Bb5 {[%clk 0:01:58]}  Bf8 {[%clk 0:01:33]} 26. Rhe1 {[%clk 0:01:57]}  Bg7 {[%clk 0:01:33]} 27. Qd2 {[%clk 0:01:52]}  Bxb2 {[%clk 0:01:32]} 28. Kxb2 {[%clk 0:01:53]}  Qg7+ {[%clk 0:01:31]} 29. Kb1 {[%clk 0:01:48]}  Rb8 {[%clk 0:01:17]} 30. Bc6 {[%clk 0:01:46]}  Re7 {[%clk 0:00:57]} 31. Rxe7 {[%clk 0:01:34]}  Qxe7 {[%clk 0:00:56]} 32. Re1 {[%clk 0:01:35]}  Qg7 {[%clk 0:00:56]} 33. Re6 {[%clk 0:01:36]}  Rf8 {[%clk 0:00:56]} 34. Be8 {[%clk 0:01:27]}  Qc3 {[%clk 0:00:52]} 35. Qxc3 {[%clk 0:01:16]}  bxc3 {[%clk 0:00:51]} 36. Bxg6+ {[%clk 0:01:17]}  Kg7 {[%clk 0:00:51]} 37. Bxh5 {[%clk 0:01:17]}  Nf2 {[%clk 0:00:50]} 38. Re7+ {[%clk 0:01:13]}  Kg8 {[%clk 0:00:49]} 39. Bg6 {[%clk 0:01:12]}  Nh3 {[%clk 0:00:46]} 40. Rxc7 {[%clk 0:00:54]}  Nxf4 {[%clk 0:00:45]} 41. Bh7+ {[%clk 0:00:51]}  Kh8 {[%clk 0:00:44]} 42. g6 {[%clk 0:00:50]}  Re8 {[%clk 0:00:44]} 43. Rxc3 {[%clk 0:00:46]}  Nxd5 {[%clk 0:00:43]} 44. Rf3 {[%clk 0:00:42]}  f4 {[%clk 0:00:42]} 45. c4 {[%clk 0:00:39]}  Nb4 {[%clk 0:00:35]} 46. a3 {[%clk 0:00:34]}  Re1+ {[%clk 0:00:32]} 47. Kb2 {[%clk 0:00:34]}  Re2+ {[%clk 0:00:32]} 48. Kc3 {[%clk 0:00:33]}  Na2+ {[%clk 0:00:25]} 49. Kd4 {[%clk 0:00:32]}  Rd2+ {[%clk 0:00:24]} 50. Ke4 {[%clk 0:00:31]}  Kg7 {[%clk 0:00:22]} 51. Rxf4 {[%clk 0:00:29]}  Nc3+ {[%clk 0:00:22]} 52. Ke3 {[%clk 0:00:30]}  Rd1 {[%clk 0:00:20]} 53. Rf7+ {[%clk 0:00:30]}  Kh6 {[%clk 0:00:19]} 54. Ra7 {[%clk 0:00:27]}  a4 {[%clk 0:00:17]} 55. bxa4 {[%clk 0:00:26]}  d5 {[%clk 0:00:17]} 56. cxd5 {[%clk 0:00:26]}  Nxd5+ {[%clk 0:00:17]} 57. Ke2 {[%clk 0:00:26]}  Nc3+ {[%clk 0:00:16]} 58. Kf2 {[%clk 0:00:26]}  Ne4+ {[%clk 0:00:16]} 59. Ke3 {[%clk 0:00:26]}  Re1+ {[%clk 0:00:16]} 60. Kf4 {[%clk 0:00:25]}  Nf6 {[%clk 0:00:16]} 61. Rf7 {[%clk 0:00:23]}  Nd5+ {[%clk 0:00:15]} 62. Kf3 {[%clk 0:00:23]}  Re3+ {[%clk 0:00:14]} 63. Kf2 {[%clk 0:00:24]}  Rxa3 {[%clk 0:00:14]} 64. h5 {[%clk 0:00:21]}  Ne3 {[%clk 0:00:13]} 65. Rf3 {[%clk 0:00:21]}  Nd1+ {[%clk 0:00:07]} 66. Kg3 {[%clk 0:00:20]}  Rxa4 {[%clk 0:00:00]} 67. Bg8 {[%clk 0:00:19]} 1-0


[Site "https://www.chess.com"]

[Event "Titled Tuesday Blitz August 15 Late 2023"]
[White "Delorme, Laurie"]
[Black "Sivakumar, Shaaketh"]
[WhiteFideId "630829"]
[BlackFideId "30940176"]
[WhiteElo "1933"]
[BlackElo "2626"]
[Result "1-0"]
[Round "2"]
[TimeControl "180+1"]
[Date "2023.08.15"]
[WhiteClock "0:00:13"]
[BlackClock "0:00:44"]
[Board "82"]

1. e4 {[%clk 0:03:00]}  e6 {[%clk 0:02:55]} 2. d4 {[%clk 0:03:00]}  d5 {[%clk 0:02:55]} 3. Nc3 {[%clk 0:03:01]}  Bb4 {[%clk 0:02:54]} 4. e5 {[%clk 0:03:01]}  Ne7 {[%clk 0:02:55]} 5. Qg4 {[%clk 0:03:01]}  Kf8 {[%clk 0:02:53]} 6. Nf3 {[%clk 0:02:56]}  b6 {[%clk 0:02:53]} 7. h4 {[%clk 0:02:47]}  h5 {[%clk 0:02:51]} 8. Qf4 {[%clk 0:02:43]}  Ba6 {[%clk 0:02:50]} 9. Bd2 {[%clk 0:02:35]}  Nf5 {[%clk 0:02:43]} 10. a3 {[%clk 0:02:33]}  Bxc3 {[%clk 0:02:41]} 11. bxc3 {[%clk 0:02:33]}  Bxf1 {[%clk 0:02:41]} 12. Kxf1 {[%clk 0:02:34]}  Qd7 {[%clk 0:02:41]} 13. a4 {[%clk 0:02:31]}  c5 {[%clk 0:02:41]} 14. g3 {[%clk 0:02:30]}  Nc6 {[%clk 0:02:39]} 15. Kg2 {[%clk 0:02:29]}  Rc8 {[%clk 0:02:38]} 16. Rhe1 {[%clk 0:01:57]}  Na5 {[%clk 0:02:35]} 17. Re2 {[%clk 0:01:51]}  Nc4 {[%clk 0:02:35]} 18. Be3 {[%clk 0:01:44]}  Ncxe3+ {[%clk 0:02:29]} 19. fxe3 {[%clk 0:01:43]}  cxd4 {[%clk 0:02:30]} 20. Nxd4 {[%clk 0:01:13]}  Nxd4 {[%clk 0:02:22]} 21. cxd4 {[%clk 0:01:13]}  Rc7 {[%clk 0:02:19]} 22. Rf2 {[%clk 0:01:09]}  Ke8 {[%clk 0:02:19]} 23. Qg5 {[%clk 0:01:08]}  Rh7 {[%clk 0:02:08]} 24. a5 {[%clk 0:01:01]}  b5 {[%clk 0:02:07]} 25. Raf1 {[%clk 0:01:00]}  Qe7 {[%clk 0:02:05]} 26. Qf4 {[%clk 0:00:36]}  Rh8 {[%clk 0:01:57]} 27. a6 {[%clk 0:00:35]}  Kd8 {[%clk 0:01:49]} 28. Qxf7 {[%clk 0:00:32]}  Qxf7 {[%clk 0:01:18]} 29. Rxf7 {[%clk 0:00:32]}  Rxc2+ {[%clk 0:01:17]} 30. Kh3 {[%clk 0:00:31]}  Rc7 {[%clk 0:01:17]} 31. g4 {[%clk 0:00:20]}  hxg4+ {[%clk 0:01:14]} 32. Kxg4 {[%clk 0:00:21]}  Re8 {[%clk 0:01:13]} 33. Rxc7 {[%clk 0:00:19]}  Kxc7 {[%clk 0:01:14]} 34. Rf7+ {[%clk 0:00:19]}  Kb6 {[%clk 0:01:14]} 35. Rxg7 {[%clk 0:00:19]}  Kxa6 {[%clk 0:01:15]} 36. h5 {[%clk 0:00:17]}  b4 {[%clk 0:01:15]} 37. h6 {[%clk 0:00:13]}  b3 {[%clk 0:01:14]} 38. Kh5 {[%clk 0:00:13]}  Kb6 {[%clk 0:01:10]} 39. h7 {[%clk 0:00:12]}  b2 {[%clk 0:01:05]} 40. Rg1 {[%clk 0:00:07]}  Rc8 {[%clk 0:00:59]} 41. Kh6 {[%clk 0:00:06]}  a5 {[%clk 0:00:47]} 42. Rb1 {[%clk 0:00:06]}  Kb5 {[%clk 0:00:39]} 43. Rxb2+ {[%clk 0:00:07]}  Ka4 {[%clk 0:00:39]} 44. Rb7 {[%clk 0:00:05]}  Ka3 {[%clk 0:00:32]} 45. Kg7 {[%clk 0:00:05]}  a4 {[%clk 0:00:32]} 46. h8=Q {[%clk 0:00:04]}  Rxh8 {[%clk 0:00:33]} 47. Kxh8 {[%clk 0:00:05]}  Ka2 {[%clk 0:00:33]} 48. Kg7 {[%clk 0:00:05]}  a3 {[%clk 0:00:34]} 49. Kf6 {[%clk 0:00:05]}  Ka1 {[%clk 0:00:34]} 50. Kxe6 {[%clk 0:00:05]}  a2 {[%clk 0:00:35]} 51. Ra7 {[%clk 0:00:06]}  Kb2 {[%clk 0:00:36]} 52. Kxd5 {[%clk 0:00:06]}  a1=Q {[%clk 0:00:35]} 53. Rxa1 {[%clk 0:00:06]}  Kxa1 {[%clk 0:00:36]} 54. e6 {[%clk 0:00:07]}  Kb2 {[%clk 0:00:36]} 55. e7 {[%clk 0:00:08]}  Kc3 {[%clk 0:00:37]} 56. e8=Q {[%clk 0:00:08]}  Kd3 {[%clk 0:00:38]} 57. e4 {[%clk 0:00:09]}  Ke2 {[%clk 0:00:39]} 58. e5 {[%clk 0:00:10]}  Kf3 {[%clk 0:00:40]} 59. e6 {[%clk 0:00:11]}  Ke3 {[%clk 0:00:40]} 60. e7 {[%clk 0:00:12]}  Kd3 {[%clk 0:00:41]} 61. Qf7 {[%clk 0:00:12]}  Ke3 {[%clk 0:00:42]} 62. e8=Q+ {[%clk 0:00:12]}  Kd3 {[%clk 0:00:43]} 63. Qf3+ {[%clk 0:00:12]}  Kc2 {[%clk 0:00:44]} 64. Qee2+ {[%clk 0:00:12]}  Kc1 {[%clk 0:00:44]} 65. Qff1# {[%clk 0:00:13]} 1-0


[Site "https://www.chess.com"]

[Event "Titled Tuesday Blitz August 15 Late 2023"]
[White "Sarana, Alexey"]
[Black "Martin Barcelo, Carles"]
[WhiteFideId "24133795"]
[BlackFideId "24561444"]
[WhiteElo "3075"]
[BlackElo "2497"]
[Result "0-1"]
[Round "2"]
[TimeControl "180+1"]
[Date "2023.08.15"]
[WhiteClock "0:02:02"]
[BlackClock "0:00:19"]
[Board "83"]

1. e4 {[%clk 0:03:00]}  e6 {[%clk 0:02:54]} 2. d4 {[%clk 0:03:00]}  d5 {[%clk 0:02:53]} 3. Nc3 {[%clk 0:03:01]}  dxe4 {[%clk 0:02:51]} 4. Nxe4 {[%clk 0:03:01]}  Nd7 {[%clk 0:02:51]} 5. Nf3 {[%clk 0:03:02]}  Ngf6 {[%clk 0:02:51]} 6. Ng3 {[%clk 0:03:01]}  c5 {[%clk 0:02:44]} 7. Bc4 {[%clk 0:02:58]}  a6 {[%clk 0:02:42]} 8. a4 {[%clk 0:02:57]}  b6 {[%clk 0:02:40]} 9. O-O {[%clk 0:02:56]}  Bb7 {[%clk 0:02:40]} 10. Re1 {[%clk 0:02:57]}  Be7 {[%clk 0:02:40]} 11. Bg5 {[%clk 0:02:56]}  h6 {[%clk 0:02:38]} 12. Bf4 {[%clk 0:02:54]}  O-O {[%clk 0:02:35]} 13. c3 {[%clk 0:02:54]}  Nd5 {[%clk 0:02:29]} 14. Bd2 {[%clk 0:02:52]}  Bd6 {[%clk 0:02:29]} 15. Ne4 {[%clk 0:02:52]}  Be7 {[%clk 0:02:27]} 16. dxc5 {[%clk 0:02:51]}  Nxc5 {[%clk 0:02:27]} 17. Nxc5 {[%clk 0:02:51]}  Bxc5 {[%clk 0:02:26]} 18. Ne5 {[%clk 0:02:51]}  Qf6 {[%clk 0:02:11]} 19. Qe2 {[%clk 0:02:46]}  Rfd8 {[%clk 0:02:07]} 20. Ng4 {[%clk 0:02:40]}  Qg6 {[%clk 0:01:22]} 21. Bd3 {[%clk 0:02:37]}  Nf4 {[%clk 0:01:22]} 22. Bxg6 {[%clk 0:02:33]}  Nxe2+ {[%clk 0:01:22]} 23. Rxe2 {[%clk 0:02:34]}  fxg6 {[%clk 0:01:23]} 24. Be3 {[%clk 0:02:34]}  Bd5 {[%clk 0:01:12]} 25. Bxc5 {[%clk 0:02:29]}  bxc5 {[%clk 0:01:13]} 26. Ne5 {[%clk 0:02:29]}  g5 {[%clk 0:01:09]} 27. f3 {[%clk 0:02:27]}  Rab8 {[%clk 0:01:08]} 28. a5 {[%clk 0:02:26]}  Kf8 {[%clk 0:01:04]} 29. Kf2 {[%clk 0:02:26]}  Ke7 {[%clk 0:01:05]} 30. Kg3 {[%clk 0:02:26]}  Kf6 {[%clk 0:01:05]} 31. Rae1 {[%clk 0:02:23]}  h5 {[%clk 0:00:45]} 32. h4 {[%clk 0:02:23]}  gxh4+ {[%clk 0:00:44]} 33. Kxh4 {[%clk 0:02:24]}  g5+ {[%clk 0:00:40]} 34. Kxh5 {[%clk 0:02:22]}  Kf5 {[%clk 0:00:21]} 35. g4+ {[%clk 0:02:14]}  Kf6 {[%clk 0:00:19]} 36. Nf7 {[%clk 0:02:01]}  Rh8+ {[%clk 0:00:18]} 37. Nh6 {[%clk 0:02:02]}  Rxh6+ {[%clk 0:00:19]} 38. Kxh6 {[%clk 0:02:02]}  Rh8# {[%clk 0:00:19]} 0-1


[Site "https://www.chess.com"]

[Event "Titled Tuesday Blitz August 15 Late 2023"]
[White "Ankerst, Mihael"]
[Black "Haydon, David L"]
[WhiteFideId "14602369"]
[BlackFideId "415405"]
[WhiteElo "2460"]
[BlackElo "2750"]
[Result "0-1"]
[Round "2"]
[TimeControl "180+1"]
[Date "2023.08.15"]
[WhiteClock "0:00:00"]
[BlackClock "0:00:34"]
[Board "85"]

1. e4 {[%clk 0:03:00]}  c6 {[%clk 0:03:00]} 2. d4 {[%clk 0:03:00]}  d5 {[%clk 0:03:00]} 3. e5 {[%clk 0:03:00]}  Bf5 {[%clk 0:03:00]} 4. Nf3 {[%clk 0:03:01]}  e6 {[%clk 0:02:59]} 5. Be2 {[%clk 0:03:01]}  c5 {[%clk 0:02:59]} 6. O-O {[%clk 0:03:01]}  Nc6 {[%clk 0:02:58]} 7. c4 {[%clk 0:03:01]}  dxc4 {[%clk 0:02:57]} 8. Be3 {[%clk 0:02:59]}  Nge7 {[%clk 0:02:55]} 9. dxc5 {[%clk 0:02:55]}  Nd5 {[%clk 0:02:52]} 10. Bd4 {[%clk 0:02:41]}  Qc7 {[%clk 0:02:50]} 11. Bxc4 {[%clk 0:02:37]}  Rd8 {[%clk 0:02:48]} 12. Bb5 {[%clk 0:02:36]}  Be7 {[%clk 0:02:42]} 13. Qa4 {[%clk 0:02:30]}  O-O {[%clk 0:02:40]} 14. Bxc6 {[%clk 0:02:30]}  bxc6 {[%clk 0:02:39]} 15. Rd1 {[%clk 0:02:14]}  Rb8 {[%clk 0:02:27]} 16. a3 {[%clk 0:02:11]}  Nf4 {[%clk 0:02:17]} 17. b4 {[%clk 0:01:07]}  Rfd8 {[%clk 0:02:13]} 18. Nc3 {[%clk 0:01:04]}  Rd7 {[%clk 0:02:04]} 19. Be3 {[%clk 0:01:04]}  Nd5 {[%clk 0:01:57]} 20. Nxd5 {[%clk 0:01:02]}  cxd5 {[%clk 0:01:46]} 21. Bf4 {[%clk 0:01:02]}  a5 {[%clk 0:01:42]} 22. Nd4 {[%clk 0:01:02]}  h5 {[%clk 0:01:36]} 23. c6 {[%clk 0:01:02]}  Rdd8 {[%clk 0:01:32]} 24. b5 {[%clk 0:01:00]}  Bg6 {[%clk 0:01:29]} 25. Rac1 {[%clk 0:00:58]}  Rdc8 {[%clk 0:01:25]} 26. Qb3 {[%clk 0:00:57]}  a4 {[%clk 0:01:23]} 27. Qxa4 {[%clk 0:00:55]}  Ra8 {[%clk 0:01:23]} 28. Qb3 {[%clk 0:00:55]}  Rxa3 {[%clk 0:01:22]} 29. Qb2 {[%clk 0:00:55]}  Rb8 {[%clk 0:01:16]} 30. Be3 {[%clk 0:00:41]}  Raa8 {[%clk 0:01:11]} 31. Qb3 {[%clk 0:00:40]}  Ra3 {[%clk 0:01:10]} 32. Qb2 {[%clk 0:00:40]}  Ra4 {[%clk 0:01:07]} 33. Ra1 {[%clk 0:00:27]}  Rb4 {[%clk 0:01:05]} 34. Qd2 {[%clk 0:00:27]}  Rc4 {[%clk 0:00:56]} 35. Rdc1 {[%clk 0:00:26]}  Bb4 {[%clk 0:00:53]} 36. Qd1 {[%clk 0:00:25]}  Bc3 {[%clk 0:00:52]} 37. Ra3 {[%clk 0:00:21]}  Bb2 {[%clk 0:00:43]} 38. Rxc4 {[%clk 0:00:17]}  dxc4 {[%clk 0:00:44]} 39. Ra4 {[%clk 0:00:14]}  Bxd4 {[%clk 0:00:35]} 40. Qxd4 {[%clk 0:00:00]}  Rxb5 {[%clk 0:00:34]} 0-1


[Site "https://www.chess.com"]

[Event "Titled Tuesday Blitz August 15 Late 2023"]
[White "Rastbod, Ali"]
[Black "Fernandez Siles, Luis"]
[WhiteFideId "12567477"]
[BlackFideId "2209420"]
[WhiteElo "2662"]
[BlackElo "2377"]
[Result "1-0"]
[Round "2"]
[TimeControl "180+1"]
[Date "2023.08.15"]
[WhiteClock "0:01:09"]
[BlackClock "0:00:12"]
[Board "89"]

1. d4 {[%clk 0:03:00]}  Nf6 {[%clk 0:02:59]} 2. Nf3 {[%clk 0:03:01]}  g6 {[%clk 0:02:59]} 3. Bg5 {[%clk 0:02:58]}  Bg7 {[%clk 0:02:58]} 4. c3 {[%clk 0:02:58]}  O-O {[%clk 0:02:58]} 5. Nbd2 {[%clk 0:02:58]}  d5 {[%clk 0:02:56]} 6. e3 {[%clk 0:02:58]}  b6 {[%clk 0:02:56]} 7. Be2 {[%clk 0:02:55]}  c5 {[%clk 0:02:54]} 8. O-O {[%clk 0:02:55]}  Ba6 {[%clk 0:02:53]} 9. b4 {[%clk 0:02:53]}  Bxe2 {[%clk 0:02:52]} 10. Qxe2 {[%clk 0:02:54]}  cxb4 {[%clk 0:02:46]} 11. cxb4 {[%clk 0:02:53]}  Qc8 {[%clk 0:02:29]} 12. Rfc1 {[%clk 0:02:40]}  Qb7 {[%clk 0:02:29]} 13. b5 {[%clk 0:02:34]}  a6 {[%clk 0:02:17]} 14. a4 {[%clk 0:02:29]}  Rc8 {[%clk 0:02:00]} 15. Rcb1 {[%clk 0:01:57]}  a5 {[%clk 0:01:59]} 16. Ne5 {[%clk 0:01:54]}  Nfd7 {[%clk 0:01:53]} 17. Nd3 {[%clk 0:01:49]}  f6 {[%clk 0:01:39]} 18. Bf4 {[%clk 0:01:46]}  e5 {[%clk 0:01:37]} 19. Bg3 {[%clk 0:01:46]}  e4 {[%clk 0:01:20]} 20. Nf4 {[%clk 0:01:43]}  Nf8 {[%clk 0:01:17]} 21. Rc1 {[%clk 0:01:24]}  Nbd7 {[%clk 0:01:14]} 22. f3 {[%clk 0:01:23]}  f5 {[%clk 0:01:03]} 23. fxe4 {[%clk 0:01:20]}  dxe4 {[%clk 0:00:57]} 24. Nc4 {[%clk 0:01:15]}  Nf6 {[%clk 0:00:24]} 25. Ne5 {[%clk 0:01:13]}  Rxc1+ {[%clk 0:00:23]} 26. Rxc1 {[%clk 0:01:14]}  Rc8 {[%clk 0:00:22]} 27. Rxc8 {[%clk 0:01:09]}  Qxc8 {[%clk 0:00:12]} 28. Qa2+ {[%clk 0:01:09]} 1-0


[Site "https://www.chess.com"]

[Event "Titled Tuesday Blitz August 15 Late 2023"]
[White "Bryant, Todd"]
[Black "Veiga, Jose Francisco R P Neves"]
[WhiteFideId "2031299"]
[BlackFideId "1930087"]
[WhiteElo "2361"]
[BlackElo "2658"]
[Result "0-1"]
[Round "2"]
[TimeControl "180+1"]
[Date "2023.08.15"]
[WhiteClock "0:00:00"]
[BlackClock "0:00:56"]
[Board "90"]

1. e4 {[%clk 0:03:00]}  Nc6 {[%clk 0:02:58]} 2. Nf3 {[%clk 0:02:58]}  d6 {[%clk 0:02:57]} 3. d4 {[%clk 0:02:55]}  Nf6 {[%clk 0:02:58]} 4. Nc3 {[%clk 0:02:54]}  g6 {[%clk 0:02:52]} 5. h3 {[%clk 0:02:46]}  Bg7 {[%clk 0:02:51]} 6. Be3 {[%clk 0:02:47]}  a6 {[%clk 0:02:50]} 7. Qd2 {[%clk 0:02:45]}  b5 {[%clk 0:02:50]} 8. Bd3 {[%clk 0:02:40]}  Bb7 {[%clk 0:02:48]} 9. O-O-O {[%clk 0:02:21]}  Nd7 {[%clk 0:02:36]} 10. Ne2 {[%clk 0:01:30]}  e5 {[%clk 0:02:26]} 11. d5 {[%clk 0:01:28]}  Ne7 {[%clk 0:02:24]} 12. Kb1 {[%clk 0:01:23]}  Nb6 {[%clk 0:02:21]} 13. h4 {[%clk 0:01:17]}  h6 {[%clk 0:02:19]} 14. g4 {[%clk 0:01:14]}  c5 {[%clk 0:02:14]} 15. dxc6 {[%clk 0:01:05]}  Bxc6 {[%clk 0:02:14]} 16. Nh2 {[%clk 0:01:00]}  d5 {[%clk 0:02:14]} 17. Bxb6 {[%clk 0:00:45]}  Qxb6 {[%clk 0:02:13]} 18. exd5 {[%clk 0:00:26]}  Nxd5 {[%clk 0:02:05]} 19. Rhe1 {[%clk 0:00:27]}  Qxf2 {[%clk 0:01:56]} 20. Be4 {[%clk 0:00:22]}  Rd8 {[%clk 0:01:50]} 21. Nf1 {[%clk 0:00:16]}  O-O {[%clk 0:01:46]} 22. h5 {[%clk 0:00:15]}  Nc3+ {[%clk 0:01:35]} 23. Qxc3 {[%clk 0:00:13]}  Rxd1+ {[%clk 0:01:30]} 24. Rxd1 {[%clk 0:00:14]}  Bxe4 {[%clk 0:01:31]} 25. Nfg3 {[%clk 0:00:11]}  Bb7 {[%clk 0:01:04]} 26. hxg6 {[%clk 0:00:07]}  fxg6 {[%clk 0:01:00]} 27. Qc7 {[%clk 0:00:06]}  Rf7 {[%clk 0:00:59]} 28. Qb8+ {[%clk 0:00:06]}  Kh7 {[%clk 0:00:59]} 29. a4 {[%clk 0:00:05]}  Bf3 {[%clk 0:00:57]} 30. Qa8 {[%clk 0:00:00]}  Bxa8 {[%clk 0:00:56]} 0-1


[Site "https://www.chess.com"]